bitfinex/quotes_BTCUSD_20230118
["timestamp","ask_amount","ask_price","bid_price","bid_amount"]
[1674018744497,0.0179245,21295.0,21294.0,2.35737259]
[1674018744750,0.0179245,21295.0,21294.0,3.18983357]
[1674018745023,0.0179245,21295.0,21294.0,3.30252114]
[1674018745300,0.0179245,21295.0,21294.0,3.41518143]
[1674018745770,0.0179245,21295.0,21294.0,3.1336796]
[1674018747090,0.0179245,21295.0,21294.0,3.41518143]
[1674018747630,0.0179245,21295.0,21294.0,2.94981256]
[1674018747895,0.0179245,21295.0,21294.0,2.8369091]
[1674018748140,0.0179245,21295.0,21294.0,2.77871073]
[1674018748394,0.0179245,21295.0,21294.0,2.94724949]
[1674018748663,0.0179245,21295.0,21294.0,3.06021256]
[1674018748961,0.01108301,21296.0,21295.0,0.185849]
[1674018749215,0.01108301,21296.0,21295.0,1.53739576]
[1674018749718,0.01108301,21296.0,21295.0,1.70594055]
[1674018750249,0.01108301,21296.0,21295.0,1.53739576]
[1674018750746,0.01608301,21296.0,21295.0,1.74094055]
[1674018751245,0.01608301,21296.0,21295.0,1.57239576]
[1674018751592,0.01608301,21296.0,21295.0,1.70594055]
[1674018751593,0.01108301,21296.0,21295.0,1.70594055]
[1674018751743,0.01108301,21296.0,21295.0,2.05965505]
[1674018752009,0.01108301,21296.0,21295.0,1.08739576]
[1674018752260,0.01108301,21296.0,21295.0,1.074035]
[1674018752773,0.01108301,21296.0,21295.0,0.604442]
[1674018754271,0.01108301,21296.0,21295.0,0.134849]
[1674018755541,0.12048301,21296.0,21295.0,0.134849]
[1674018756864,0.66295601,21296.0,21295.0,0.134849]
[1674018757127,0.33295601,21296.0,21295.0,0.134849]
[1674018757379,0.01108301,21296.0,21295.0,0.035849]
[1674018757650,0.01108301,21296.0,21295.0,0.29820976]
[1674018757963,0.01108301,21296.0,21295.0,0.85880276]
[1674018758206,0.01108301,21296.0,21295.0,0.70880276]
[1674018758454,0.01108301,21296.0,21295.0,0.91780276]
[1674018758716,0.01108301,21296.0,21295.0,0.76780276]
[1674018758964,0.01108301,21296.0,21295.0,0.61780276]
[1674018759490,0.01108301,21296.0,21295.0,0.70880276]
[1674018759503,0.01108301,21296.0,21295.0,0.85880276]
[1674018759747,0.01108301,21296.0,21295.0,1.49694055]
[1674018760019,0.01108301,21296.0,21295.0,2.35165408]
[1674018760303,0.01141067,21298.0,21295.0,2.35165408]
[1674018760547,0.01141067,21298.0,21295.0,2.07459539]
[1674018760805,0.01141067,21298.0,21295.0,1.79694055]
[1674018761057,0.01141067,21298.0,21296.0,0.41236076]
[1674018761347,0.01141067,21298.0,21296.0,1.05148676]
[1674018761606,0.01141067,21298.0,21296.0,0.939126]
[1674018761858,0.01141067,21298.0,21296.0,0.46957]
[1674018762136,0.01141067,21298.0,21296.0,0.56057]
[1674018764204,0.01141067,21298.0,21296.0,0.70057]
[1674018764569,0.01141067,21298.0,21296.0,1.170141]
[1674018766080,0.01141067,21298.0,21296.0,1.28250176]
[1674018766829,0.01141067,21298.0,21296.0,1.170141]
[1674018767624,0.01141067,21298.0,21296.0,1.28250176]
[1674018767830,0.01141067,21298.0,21296.0,1.170141]
[1674018770728,0.01141067,21298.0,21296.0,1.28250176]
[1674018773026,0.12270603,21300.0,21296.0,1.45104655]
[1674018773256,0.12270603,21300.0,21296.0,1.48600394]
[1674018774100,0.12270603,21300.0,21296.0,1.36004655]
[1674018774336,0.12270603,21300.0,21297.0,0.11236076]
[1674018774584,0.12270603,21300.0,21297.0,0.469541]
[1674018775133,0.12270603,21300.0,21297.0,0.58190176]
[1674018776640,0.12270603,21300.0,21297.0,0.67390176]
[1674018778212,0.12270603,21300.0,21297.0,0.561541]
[1674018778447,0.12270603,21300.0,21297.0,0.67390176]
[1674018779875,0.12270603,21300.0,21297.0,0.84244655]
[1674018780362,0.12270603,21300.0,21298.0,0.11236076]
[1674018781365,0.12270603,21300.0,21297.0,0.28090555]
[1674018781635,0.12270603,21300.0,21298.0,0.092]
[1674018782143,0.12270603,21300.0,21298.0,0.20436076]
[1674018782392,0.01330603,21300.0,21298.0,0.20436076]
[1674018782648,0.01330603,21300.0,21298.0,0.11236076]
[1674018783389,0.01330603,21300.0,21298.0,0.20436076]
[1674018785121,0.01322304,21300.0,21298.0,0.20436076]
[1674018785619,0.01322304,21300.0,21298.0,0.092]
[1674018786128,0.321873,21299.0,21298.0,0.092]
[1674018786659,0.01322304,21300.0,21298.0,0.092]
[1674018787170,0.01322304,21300.0,21297.0,1.21996355]
[1674018787423,0.01322304,21300.0,21298.0,0.20436076]
[1674018787687,0.01322304,21300.0,21298.0,0.11236076]
[1674018787928,0.01322304,21300.0,21298.0,0.20436076]
[1674018788677,0.01322304,21300.0,21298.0,0.37290555]
[1674018788919,0.01322304,21300.0,21298.0,0.11236076]
[1674018789477,0.01322304,21300.0,21298.0,0.20436076]
[1674018790764,0.01322304,21300.0,21298.0,0.9275921]
[1674018791019,0.01322304,21300.0,21298.0,0.37290555]
[1674018791813,0.01322304,21300.0,21298.0,0.20436076]
[1674018792078,0.01322304,21300.0,21298.0,0.37290555]
[1674018793075,0.01322304,21300.0,21298.0,0.20436076]
[1674018797127,0.1104,21299.0,21298.0,0.20436076]
[1674018798172,0.1104,21299.0,21298.0,0.11236076]
[1674018798426,0.1104,21299.0,21298.0,0.20436076]
[1674018799191,0.1104,21299.0,21298.0,0.092]
[1674018800668,0.1104,21299.0,21298.0,0.20436076]
[1674018801667,0.1104,21299.0,21298.0,0.92760237]
[1674018801932,0.1104,21299.0,21298.0,0.20436076]
[1674018802400,0.12292304,21300.0,21298.0,0.20436076]
[1674018803134,0.12292304,21300.0,21298.0,0.11236076]
[1674018804410,0.12292304,21300.0,21298.0,0.20436076]
[1674018805708,0.12292304,21300.0,21298.0,0.37290555]
[1674018806212,0.12292304,21300.0,21298.0,0.20436076]
[1674018806992,0.12292304,21300.0,21298.0,0.37290555]
[1674018807492,0.12292304,21300.0,21298.0,0.20436076]
[1674018809701,0.12292304,21300.0,21299.0,0.11236076]
[1674018810225,0.01322304,21300.0,21299.0,0.11236076]
[1674018811017,0.01322304,21300.0,21299.0,0.18736076]
[1674018811285,0.01322304,21300.0,21299.0,0.35590555]
[1674018811537,0.01429581,21301.0,21299.0,1.0511402]
[1674018811796,0.01429581,21301.0,21300.0,0.11263213]
[1674018812546,0.01429581,21301.0,21300.0,0.28158032]
[1674018812792,0.01429581,21301.0,21300.0,0.11263213]
[1674018813114,0.01529581,21301.0,21300.0,0.11663213]
[1674018813302,0.01529581,21301.0,21300.0,0.28558032]
[1674018813561,0.01529581,21301.0,21300.0,0.72758122]
[1674018813841,0.01529581,21301.0,21300.0,0.84017407]
[1674018814102,0.01529581,21301.0,21300.0,0.84018051]
[1674018814375,0.01529581,21301.0,21300.0,0.11659285]
[1674018814873,0.01529581,21301.0,21300.0,0.58607585]
[1674018816201,0.01529581,21301.0,21300.0,0.11659285]
[1674018818227,0.01529581,21301.0,21300.0,0.004]
[1674018818521,0.01529581,21301.0,21300.0,0.11659285]
[1674018818777,0.01529581,21301.0,21300.0,0.28554104]
[1674018819495,0.01529581,21301.0,21300.0,0.11659285]
[1674018820464,0.01429581,21301.0,21300.0,0.11259285]
[1674018821233,0.01429581,21301.0,21300.0,0.20459285]
[1674018821479,0.01429581,21301.0,21300.0,0.11259285]
[1674018821998,0.01429581,21301.0,21300.0,0.091]
[1674018826420,0.33616881,21301.0,21300.0,0.091]
[1674018827103,0.01429581,21301.0,21300.0,0.091]
[1674018829321,0.44656881,21301.0,21300.0,0.091]
[1674018829879,1.85346348,21301.0,21300.0,0.091]
[1674018832504,1.85346348,21301.0,21296.0,0.86342234]
[1674018832766,0.62299895,21300.0,21296.0,0.4947675]
[1674018832999,0.321873,21299.0,21296.0,0.4947675]
[1674018833253,0.66023395,21299.0,21296.0,0.4947675]
[1674018833509,0.469508,21299.0,21296.0,0.4947675]
[1674018833830,0.469508,21299.0,21296.0,0.26963413]
[1674018834030,0.579883,21300.0,21296.0,0.26963413]
[1674018834561,0.579883,21300.0,21296.0,1.0494805]
[1674018834826,0.579883,21300.0,21296.0,0.83134713]
[1674018835138,0.579883,21300.0,21296.0,0.82434713]
[1674018835342,0.45614578,21299.0,21296.0,0.83134713]
[1674018835596,0.431873,21298.0,21296.0,0.83134713]
[1674018835867,0.321873,21297.0,21296.0,0.83134713]
[1674018836390,0.11,21298.0,21296.0,0.82434713]
[1674018837149,0.321873,21297.0,21296.0,0.82434713]
[1674018837402,0.11,21298.0,21296.0,0.83034713]
[1674018837679,0.11,21298.0,21296.0,0.82434713]
[1674018837935,0.11,21298.0,21296.0,0.99913478]
[1674018838211,0.118,21298.0,21296.0,0.99913478]
[1674018839003,0.118,21298.0,21296.0,0.83018659]
[1674018839242,0.118,21298.0,21296.0,0.72950065]
[1674018840410,0.008,21298.0,21296.0,0.72950065]
[1674018841677,0.008,21298.0,21296.0,0.87950065]
[1674018841919,0.008,21298.0,21296.0,0.72950065]
[1674018843554,0.008,21298.0,21296.0,1.19907065]
[1674018845103,0.008,21298.0,21296.0,0.72950065]
[1674018846520,0.008,21298.0,21296.0,0.87950065]
[1674018846840,0.008,21298.0,21296.0,1.34906965]
[1674018847089,0.008,21298.0,21297.0,0.15]
[1674018848002,1.06365381,21301.0,21297.0,0.15]
[1674018848213,0.008,21298.0,21297.0,0.19095739]
[1674018848540,0.008,21298.0,21297.0,0.156]
[1674018848774,0.008,21298.0,21297.0,0.625549]
[1674018849560,0.59417381,21301.0,21297.0,0.619549]
[1674018849836,0.12469581,21301.0,21297.0,1.48962897]
[1674018850057,0.13369581,21301.0,21297.0,1.49562897]
[1674018850295,0.02329581,21301.0,21298.0,0.3]
[1674018850621,0.01429581,21301.0,21299.0,0.619505]
[1674018850877,0.01429581,21301.0,21299.0,1.08901]
[1674018851102,0.02329581,21301.0,21299.0,0.469505]
[1674018851624,0.02829581,21301.0,21299.0,0.469505]
[1674018852360,0.01429581,21301.0,21299.0,0.469505]
[1674018852607,0.06129581,21301.0,21299.0,0.470505]
[1674018856242,0.06118056,21301.0,21299.0,0.470505]
[1674018864426,0.06118056,21301.0,21299.0,0.94001]
[1674018864948,0.12435588,21303.0,21300.0,0.1124288]
[1674018865209,0.12435588,21303.0,21300.0,0.87079321]
[1674018865461,0.01395588,21303.0,21301.0,0.1124288]
[1674018866223,0.01395588,21303.0,21300.0,1.11491855]
[1674018866472,0.01695588,21303.0,21300.0,0.80569945]
[1674018866729,0.01695588,21303.0,21300.0,1.58440155]
[1674018866730,0.01395588,21303.0,21300.0,1.58440155]
[1674018866978,0.01695588,21303.0,21301.0,0.055]
[1674018867257,0.01395588,21303.0,21300.0,1.22016245]
[1674018867503,0.01695588,21303.0,21301.0,0.469459]
[1674018868529,0.01695588,21303.0,21301.0,0.5818878]
[1674018869288,0.01395588,21303.0,21301.0,0.5818878]
[1674018869561,0.01695588,21303.0,21301.0,0.6368878]
[1674018870565,0.01695588,21303.0,21301.0,0.524459]
[1674018871313,0.01695588,21303.0,21301.0,0.99392]
[1674018871795,0.01695588,21303.0,21301.0,0.524461]
[1674018872809,0.01695588,21303.0,21301.0,0.055]
[1674018877594,0.01695588,21303.0,21301.0,0.52446]
[1674018877895,0.01695588,21303.0,21301.0,0.29917967]
[1674018878950,0.01695588,21303.0,21301.0,0.41160847]
[1674018879407,0.01695588,21303.0,21301.0,0.88106947]
[1674018879923,0.01695588,21303.0,21301.0,0.98106947]
[1674018882927,0.01695588,21303.0,21301.0,1.14985712]
[1674018883365,0.01695588,21303.0,21301.0,0.98106947]
[1674018885381,0.01695588,21303.0,21301.0,1.14985712]
[1674018886920,0.01695588,21303.0,21302.0,0.1124288]
[1674018887192,0.01695588,21303.0,21302.0,0.5818678]
[1674018888222,0.01395588,21303.0,21302.0,0.5818678]
[1674018888435,0.02295588,21303.0,21302.0,0.5868678]
[1674018889987,0.02295588,21303.0,21302.0,1.0563068]
[1674018890747,0.02295588,21303.0,21302.0,0.5868678]
[1674018891033,0.02295588,21303.0,21302.0,0.1174288]
[1674018894066,0.02295588,21303.0,21302.0,0.5868678]
[1674018894823,0.01495251,21304.0,21302.0,1.31024115]
[1674018895080,0.01495251,21304.0,21302.0,0.75565545]
[1674018895868,0.01495251,21304.0,21302.0,0.75065545]
[1674018896130,0.02295251,21304.0,21302.0,0.76365545]
[1674018899148,0.02295251,21304.0,21302.0,1.23309445]
[1674018900150,0.02295251,21304.0,21302.0,0.76365545]
[1674018900934,0.02295251,21304.0,21302.0,0.29421645]
[1674018901452,0.02295251,21304.0,21302.0,0.1254288]
[1674018902210,0.02295251,21304.0,21302.0,0.29421645]
[1674018903489,0.02295251,21304.0,21302.0,0.76365445]
[1674018903755,0.02295251,21304.0,21303.0,0.1124288]
[1674018905184,0.01495251,21304.0,21303.0,0.1124288]
[1674018905487,0.01895251,21304.0,21303.0,0.96049025]
[1674018905742,0.01895251,21304.0,21303.0,1.42990725]
[1674018906003,0.01895251,21304.0,21303.0,1.20477388]
[1674018906252,0.01895251,21304.0,21303.0,1.78419088]
[1674018906509,0.01895251,21304.0,21303.0,1.8405366]
[1674018906764,0.01895251,21304.0,21303.0,2.12192634]
[1674018907031,0.01895251,21304.0,21303.0,1.8405366]
[1674018907306,0.01895251,21304.0,21303.0,2.42192634]
[1674018907848,0.01895251,21304.0,21303.0,2.7847601]
[1674018908019,0.01495251,21304.0,21303.0,2.7727601]
[1674018908270,0.01995251,21304.0,21303.0,2.81064021]
[1674018908528,0.01495251,21304.0,21303.0,2.65732673]
[1674018908814,0.01995251,21304.0,21303.0,2.69532673]
[1674018909338,0.01995251,21304.0,21303.0,2.89113868]
[1674018910348,0.01995251,21304.0,21303.0,3.17229162]
[1674018912585,0.2959068,21305.0,21304.0,0.03990501]
[1674018912852,0.2959068,21305.0,21304.0,2.50033694]
[1674018913131,0.2959068,21305.0,21304.0,3.54942694]
[1674018913432,0.01588262,21307.0,21305.0,0.20097]
[1674018913664,0.01588262,21307.0,21306.0,3.36767323]
[1674018913927,0.01588262,21307.0,21306.0,5.10422381]
[1674018914227,0.01588262,21307.0,21306.0,5.88050394]
[1674018914482,0.01588262,21307.0,21306.0,4.62590291]
[1674018914997,0.01588262,21307.0,21306.0,4.71790291]
[1674018915300,0.01588262,21307.0,21306.0,4.99845651]
[1674018915804,0.01588262,21307.0,21306.0,4.90645651]
[1674018916070,0.01588262,21307.0,21306.0,4.90631086]
[1674018916333,0.01588262,21307.0,21306.0,4.99831086]
[1674018916876,0.01588262,21307.0,21306.0,5.22264131]
[1674018917369,0.01588262,21307.0,21306.0,4.99831086]
[1674018917633,0.01588262,21307.0,21306.0,5.2226255]
[1674018918214,0.01588262,21307.0,21306.0,5.1104677]
[1674018918940,0.01588262,21307.0,21306.0,4.99828963]
[1674018919207,0.20660857,21307.0,21306.0,2.80822464]
[1674018919472,0.01588262,21307.0,21306.0,2.33887364]
[1674018919721,0.01588262,21307.0,21306.0,2.22672999]
[1674018920262,0.01588262,21307.0,21306.0,2.80822464]
[1674018921554,0.01588262,21307.0,21306.0,3.10822464]
[1674018921831,0.01588262,21307.0,21306.0,2.80822464]
[1674018922298,0.01588262,21307.0,21306.0,2.69608099]
[1674018922617,0.01588262,21307.0,21306.0,3.10822464]
[1674018922863,0.01588262,21307.0,21306.0,3.10886912]
[1674018924936,0.01681621,21310.0,21306.0,3.10886912]
[1674018925198,0.01681621,21310.0,21306.0,3.14382651]
[1674018925491,0.01681621,21310.0,21306.0,2.84382651]
[1674018925492,0.12721621,21310.0,21306.0,2.84382651]
[1674018926023,0.12721621,21310.0,21306.0,2.75182651]
[1674018926546,0.12721621,21310.0,21306.0,2.80886912]
[1674018927073,0.12721621,21310.0,21306.0,2.33951812]
[1674018927319,0.12721621,21310.0,21306.0,2.80886912]
[1674018927856,0.12721621,21310.0,21306.0,2.84382651]
[1674018928090,0.12721621,21310.0,21306.0,2.80886912]
[1674018929410,0.12721621,21310.0,21306.0,2.97711927]
[1674018929662,0.31794216,21310.0,21306.0,2.80886912]
[1674018929920,0.12721621,21310.0,21306.0,2.69672547]
[1674018930425,0.12721621,21310.0,21306.0,2.80886912]
[1674018931214,0.12721621,21310.0,21306.0,2.97711927]
[1674018931674,0.12721621,21310.0,21306.0,2.80886912]
[1674018932466,0.01681621,21310.0,21306.0,2.80886912]
[1674018932956,0.20754216,21310.0,21306.0,2.80886912]
[1674018933207,0.20754216,21310.0,21306.0,2.69672547]
[1674018933208,0.1095,21309.0,21306.0,2.69672547]
[1674018933471,0.321873,21308.0,21306.0,2.69672547]
[1674018933746,0.01681621,21310.0,21306.0,2.97711927]
[1674018933977,0.01681621,21310.0,21307.0,0.11214365]
[1674018934223,0.01681621,21310.0,21307.0,0.938638]
[1674018934470,0.01681621,21310.0,21307.0,1.05078165]
[1674018934738,0.01681621,21310.0,21307.0,0.938638]
[1674018935723,0.01681621,21310.0,21307.0,0.561312]
[1674018938235,0.01681621,21310.0,21307.0,0.67345565]
[1674018940385,0.01681621,21310.0,21307.0,0.8417058]
[1674018940854,0.01681621,21310.0,21307.0,0.58145565]
[1674018941827,0.01781621,21310.0,21307.0,0.66645565]
[1674018943094,0.01781621,21310.0,21307.0,0.8347058]
[1674018944053,0.01781621,21310.0,21307.0,1.05902044]
[1674018944335,0.01781621,21310.0,21308.0,0.83481163]
[1674018945368,0.01781621,21310.0,21308.0,0.11214365]
[1674018946116,0.01781621,21310.0,21308.0,0.2803938]
[1674018946346,0.01681621,21310.0,21308.0,1.94366768]
[1674018946607,0.01681621,21310.0,21308.0,1.18261043]
[1674018946608,0.01781621,21310.0,21308.0,1.18261043]
[1674018948346,0.01781621,21310.0,21308.0,1.35182614]
[1674018949198,0.01781621,21310.0,21308.0,1.18325486]
[1674018950516,0.01781621,21310.0,21308.0,1.35182614]
[1674018951020,0.01781621,21310.0,21308.0,1.45182614]
[1674018952384,0.01781621,21310.0,21308.0,1.67614078]
[1674018952650,0.01781621,21310.0,21309.0,0.72299103]
[1674018952912,0.01781621,21310.0,21308.0,1.95654873]
[1674018953158,0.01781621,21310.0,21309.0,0.72299296]
[1674018953670,0.01781621,21310.0,21309.0,0.72299048]
[1674018954511,0.01681621,21310.0,21309.0,0.72299048]
[1674018954740,0.01681621,21310.0,21309.0,0.086]
[1674018954741,0.01781621,21310.0,21309.0,0.086]
[1674018955269,0.01781621,21310.0,21309.0,0.25457128]
[1674018955531,0.01781621,21310.0,21309.0,0.80898825]
[1674018955532,1e-08,21310.0,21309.0,0.80898825]
[1674018956079,1e-08,21310.0,21309.0,0.086]
[1674018956580,1e-08,21310.0,21309.0,0.1985221]
[1674018959800,1e-08,21310.0,21309.0,0.086]
[1674018959972,1e-08,21310.0,21309.0,0.1985221]
[1674018960500,0.11040001,21310.0,21309.0,0.086]
[1674018962875,0.57966301,21310.0,21309.0,0.086]
[1674018963896,0.11040001,21310.0,21309.0,0.086]
[1674018964153,0.11040001,21310.0,21309.0,0.1985221]
[1674018965944,0.11040001,21310.0,21309.0,1.03329331]
[1674018965945,1e-08,21310.0,21309.0,1.03329331]
[1674018967596,1e-08,21310.0,21309.0,0.80897867]
[1674018967811,1e-08,21310.0,21309.0,1.03329331]
[1674018968065,1e-08,21310.0,21309.0,0.80897867]
[1674018969881,1e-08,21310.0,21309.0,0.92137572]
[1674018970413,1e-08,21310.0,21309.0,1.03329331]
[1674018970683,1e-08,21310.0,21309.0,1.14512998]
[1674018970961,1e-08,21310.0,21309.0,0.92081534]
[1674018971227,1e-08,21310.0,21309.0,0.9219179]
[1674018971510,1e-08,21310.0,21309.0,0.86569955]
[1674018972578,1e-08,21310.0,21309.0,1.14656567]
[1674018972832,1e-08,21310.0,21309.0,1.50349096]
[1674018973087,1e-08,21310.0,21309.0,1.33498455]
[1674018973341,1e-08,21310.0,21309.0,1.50348684]
[1674018973588,1e-08,21310.0,21309.0,2.08513567]
[1674018973857,1e-08,21310.0,21309.0,1.8604879]
[1674018974373,1e-08,21310.0,21309.0,2.08512173]
[1674018974936,1e-08,21310.0,21309.0,1.97274274]
[1674018976177,1e-08,21310.0,21309.0,1.74810891]
[1674018976427,1e-08,21310.0,21309.0,1.3053873]
[1674018976673,1e-08,21310.0,21309.0,1.8597977]
[1674018976919,1e-08,21310.0,21309.0,1.3905127]
[1674018977176,1e-08,21310.0,21309.0,0.1983209]
[1674018978702,1e-08,21310.0,21309.0,0.086]
[1674018979717,1e-08,21310.0,21309.0,0.1983209]
[1674018980727,1e-08,21310.0,21309.0,0.086]
[1674018980994,0.32187301,21310.0,21309.0,0.086]
[1674018981276,1e-08,21310.0,21309.0,0.1983209]
[1674018981471,1e-08,21310.0,21309.0,0.086]
[1674018982484,0.32187301,21310.0,21309.0,0.086]
[1674018983248,1e-08,21310.0,21309.0,0.086]
[1674018985447,0.32187301,21310.0,21309.0,0.086]
[1674018985732,1e-08,21310.0,21309.0,0.086]
[1674018988125,0.48620858,21312.0,21310.0,5.999e-05]
[1674018988332,0.01697058,21312.0,21310.0,0.14732156]
[1674018988578,0.01697058,21312.0,21310.0,0.11236417]
[1674018988833,0.01697058,21312.0,21310.0,5.999e-05]
[1674018989077,0.02397058,21312.0,21310.0,0.11836417]
[1674018991332,0.02397058,21312.0,21310.0,0.00605999]
[1674018992363,0.02397058,21312.0,21310.0,0.11836417]
[1674018992613,0.321873,21311.0,21310.0,0.00605999]
[1674018993124,0.02397058,21312.0,21310.0,0.00605999]
[1674018993630,0.321873,21311.0,21310.0,0.00605999]
[1674018993908,0.321873,21311.0,21310.0,5.999e-05]
[1674018994151,0.328873,21311.0,21310.0,5.999e-05]
[1674018994411,0.321873,21311.0,21310.0,5.999e-05]
[1674018994700,0.02397058,21312.0,21310.0,0.00605999]
[1674018994960,0.01697058,21312.0,21310.0,5.999e-05]
[1674018995192,0.007,21311.0,21310.0,5.999e-05]
[1674018995452,0.328873,21311.0,21310.0,5.999e-05]
[1674018995719,0.321873,21311.0,21310.0,5.999e-05]
[1674018996424,0.01697058,21312.0,21310.0,5.999e-05]
[1674018996425,0.01697058,21312.0,21310.0,0.11236417]
[1674018996680,0.01697058,21312.0,21310.0,5.999e-05]
[1674018997174,0.02397058,21312.0,21310.0,0.00605999]
[1674018997668,0.321873,21311.0,21310.0,0.00605999]
[1674018998469,0.02397058,21312.0,21310.0,0.00605999]
[1674018998939,0.321873,21311.0,21310.0,0.00605999]
[1674018999449,0.431873,21311.0,21310.0,0.00605999]
[1674018999697,1.370355,21311.0,21310.0,5.999e-05]
[1674018999935,1.267355,21311.0,21310.0,5.999e-05]
[1674019000951,0.945482,21311.0,21310.0,5.999e-05]
[1674019001213,1.267355,21311.0,21310.0,5.999e-05]
[1674019001445,0.798114,21311.0,21310.0,5.999e-05]
[1674019002203,0.476241,21311.0,21310.0,5.999e-05]
[1674019002467,0.798114,21311.0,21310.0,5.999e-05]
[1674019004373,0.476241,21311.0,21310.0,5.999e-05]
[1674019004645,0.798114,21311.0,21310.0,5.999e-05]
[1674019005656,0.798114,21311.0,21309.0,0.10236417]
[1674019005929,0.321873,21310.0,21309.0,0.10236417]
[1674019006252,0.476241,21311.0,21309.0,0.10236417]
[1674019006712,0.476241,21311.0,21309.0,0.2708513]
[1674019007004,0.59660658,21312.0,21309.0,0.72290518]
[1674019007205,0.59660658,21312.0,21309.0,0.94753901]
[1674019007454,0.59660658,21312.0,21309.0,1.00753901]
[1674019007673,0.12737058,21312.0,21309.0,0.45312096]
[1674019007941,0.12737058,21312.0,21309.0,0.60312096]
[1674019008189,0.12737058,21312.0,21309.0,0.86240196]
[1674019008459,0.13437058,21312.0,21310.0,0.72288436]
[1674019008976,0.13437058,21312.0,21309.0,0.86240196]
[1674019009218,0.12737058,21312.0,21309.0,1.33168696]
[1674019009479,0.12737058,21312.0,21310.0,0.16848713]
[1674019009721,0.12737058,21312.0,21310.0,0.7228742]
[1674019010259,0.11100702,21312.0,21310.0,0.7288742]
[1674019010628,0.11100702,21312.0,21310.0,0.17448713]
[1674019012533,0.007,21312.0,21310.0,0.17448713]
[1674019012747,0.007,21312.0,21310.0,0.64374613]
[1674019015364,0.007,21312.0,21311.0,0.16848713]
[1674019015657,0.007,21312.0,21311.0,0.11230403]
[1674019016643,0.12627058,21313.0,21311.0,0.83515123]
[1674019016902,0.006,21312.0,21311.0,0.11930403]
[1674019017649,0.006,21312.0,21311.0,2.41481608]
[1674019017928,0.01697058,21313.0,21312.0,0.162]
[1674019018187,0.0178759,21316.0,21314.0,0.006]
[1674019018440,0.0178759,21316.0,21314.0,0.04095739]
[1674019018706,0.0178759,21316.0,21314.0,0.006]
[1674019019471,0.0178759,21316.0,21314.0,0.475171]
[1674019019713,0.1104,21315.0,21314.0,0.006]
[1674019019966,0.432273,21315.0,21314.0,0.099]
[1674019020739,0.901426,21315.0,21314.0,0.006]
[1674019020965,0.901426,21315.0,21314.0,0.099]
[1674019022317,0.432273,21315.0,21314.0,0.099]
[1674019024648,0.1104,21315.0,21314.0,0.099]
[1674019025448,0.432273,21315.0,21314.0,0.099]
[1674019025977,0.1104,21315.0,21314.0,0.099]
[1674019027036,0.1282759,21316.0,21314.0,0.099]
[1674019027331,0.1104,21315.0,21314.0,0.099]
[1674019027597,0.432273,21315.0,21314.0,0.099]
[1674019027856,0.432273,21315.0,21314.0,0.0557676]
[1674019031028,0.321873,21315.0,21314.0,0.0557676]
[1674019031297,0.1282759,21316.0,21314.0,0.0557676]
[1674019031820,0.431373,21315.0,21314.0,0.0557676]
[1674019032107,0.541173,21315.0,21314.0,0.0557676]
[1674019032685,1.479479,21315.0,21314.0,0.0557676]
[1674019033204,1.479479,21315.0,21312.0,0.012]
[1674019033502,0.1104,21313.0,21312.0,0.012]
[1674019033760,0.432273,21313.0,21312.0,0.012]
[1674019034039,0.1104,21313.0,21312.0,0.012]
[1674019034289,0.432273,21313.0,21312.0,0.07]
[1674019034851,0.435273,21313.0,21312.0,0.128]
[1674019036428,0.1134,21313.0,21312.0,0.128]
[1674019037209,0.435273,21313.0,21312.0,0.128]
[1674019042670,0.90447,21313.0,21312.0,0.128]
[1674019042907,1.93979432,21313.0,21312.0,0.128]
[1674019044734,2.87853789,21313.0,21312.0,0.128]
[1674019044997,1.93979432,21313.0,21312.0,0.128]
[1674019045330,2.87853531,21313.0,21312.0,0.128]
[1674019045831,2.8785359,21313.0,21312.0,0.128]
[1674019046609,3.23831824,21313.0,21312.0,0.128]
[1674019048164,2.8785359,21313.0,21312.0,0.128]
[1674019048422,3.23831824,21313.0,21312.0,0.128]
[1674019048720,3.70751524,21313.0,21312.0,0.128]
[1674019048936,4.00751524,21313.0,21312.0,0.128]
[1674019049220,3.3477329,21313.0,21312.0,0.12793085]
[1674019049457,3.34776072,21313.0,21312.0,0.12793085]
[1674019050236,3.34776072,21313.0,21310.0,0.0005648]
[1674019050237,3.34476072,21313.0,21310.0,0.0005648]
[1674019050491,0.1104,21311.0,21310.0,0.0005648]
[1674019050741,1.370755,21311.0,21310.0,0.0005648]
[1674019051513,1.370755,21311.0,21310.0,0.0855648]
[1674019052016,1.370755,21311.0,21310.0,0.0005648]
[1674019053311,1.371755,21311.0,21310.0,0.0855648]
[1674019056306,1.370755,21311.0,21310.0,0.0005648]
[1674019056557,1.371755,21311.0,21310.0,0.0785648]
[1674019057781,1.261355,21311.0,21310.0,0.0785648]
[1674019059034,1.23011793,21311.0,21310.0,0.0785648]
[1674019059782,0.76087693,21311.0,21310.0,0.0785648]
[1674019060037,0.470241,21311.0,21310.0,0.0785648]
[1674019060804,0.001,21311.0,21310.0,0.0785648]
[1674019062048,1.03533932,21313.0,21310.0,0.0785648]
[1674019062573,0.321854,21312.0,21310.0,0.0785648]
[1674019062816,0.92493932,21313.0,21310.0,0.0785648]
[1674019063095,0.92493932,21313.0,21310.0,0.0005648]
[1674019063327,0.92593932,21313.0,21310.0,0.0795648]
[1674019066155,0.45672732,21313.0,21310.0,0.5488258]
[1674019066675,0.001,21313.0,21310.0,0.5488258]
[1674019066969,0.001,21313.0,21310.0,0.0795648]
[1674019071266,0.001,21313.0,21310.0,0.36020169]
[1674019072504,0.001,21313.0,21310.0,0.1918193]
[1674019078047,0.84911596,21313.0,21310.0,0.0795648]
[1674019078300,0.321854,21312.0,21310.0,0.0795648]
[1674019078541,1.31832896,21313.0,21310.0,0.0795648]
[1674019078796,0.321854,21312.0,21310.0,0.0795648]
[1674019079050,0.321854,21311.0,21310.0,0.0795648]
[1674019079298,0.84913396,21313.0,21310.0,0.0795648]
[1674019079624,1.31834796,21313.0,21310.0,0.0795648]
[1674019079813,0.84913196,21313.0,21310.0,0.11227984]
[1674019080078,0.84813196,21313.0,21309.0,0.654206]
[1674019080317,0.008,21311.0,21310.0,0.006]
[1674019080834,0.008,21311.0,21310.0,0.11827984]
[1674019081087,0.008,21311.0,21310.0,0.006]
[1674019081345,0.329854,21311.0,21310.0,0.006]
[1674019081605,0.321854,21311.0,21310.0,0.006]
[1674019081825,1.42771496,21313.0,21309.0,0.11227984]
[1674019082075,1.42772996,21313.0,21309.0,0.11227984]
[1674019082337,0.008,21311.0,21310.0,0.006]
[1674019082851,1.31735096,21313.0,21309.0,0.11227984]